Cogmind - Beta 15 @@@ ROGUE MODE // 2025.08.12 @ 10:57:01 Player: Zen9890 Result: Destroyed by G-34 Mercenary with Small Laser Performance ------------- Evolutions (0) 0 Regions Visited (4) 800 Robots Destroyed (10) 50 Value Destroyed (197) 197 Prototype IDs (0) 0 Alien Tech Used (0) 0 Bonus (0) 0 TOTAL SCORE: 1047 Bonus ------- None Cogmind --------- Core Integrity 0/250 Matter 300/300 Energy 100/100 System Corruption 0% Temperature Cool (6) Movement Core (200) Ox3 Location -9/Mines Parts ------- > --- POWER (1) -------- (None) > --- PROPULSION (2) --- (None) > --- UTILITY (2) ------ Medium Storage Unit > --- WEAPON (2) ------- (None) > --- INVENTORY (10) --- Wheel Compact Matter Pod (150) Improved Terrain Scanner Light Assault Rifle Peak State ------------ > --- POWER ------------ Light Nuclear Core > --- PROPULSION ------- Wheel Wheel > --- UTILITY ---------- Small Storage Unit Seismic Detector > --- WEAPON ----------- Small Laser Small Laser > --- INVENTORY -------- Wheel Wheel Wheel Medium Matter Pod Improved Terrain Scanner Light Assault Rifle Mining Laser Mining Laser [Rating: 10] Favorites ----------- Power Light Nuclear Core Engine Ion Engine Power Core Light Nuclear Core Propulsion Wheel Wheel Wheel Utility Seismic Detector Device Seismic Detector Storage Medium Storage Unit Weapon Small Laser Energy Gun Small Laser Special Weapon Mining Laser Build | -11 -10 -10 -10 -9 ------- Run | Yrd Mat Min Exi Min Slots Evolved . | . . . . . Power . | . . . . . Propulsion . | . . . . . Utility . | . . . . . Weapon . | . . . . . Parts Attached 12 | 7 . 1 1 3 Power 2 | 1 . 1 . . Engine 1 | 1 . . . . Core 1 | . . 1 . . Reactor . | . . . . . Propulsion 3 | 2 . . . 1 Treads . | . . . . . Leg . | . . . . . Wheel 3 | 2 . . . 1 Hover . | . . . . . Flight . | . . . . . Utility 3 | 2 . . 1 . Device 1 | 1 . . . . Storage 2 | 1 . . 1 . Processor . | . . . . . Hackware . | . . . . . Protection . | . . . . . Artifact . | . . . . . Weapon 4 | 2 . . . 2 Energy Gun 2 | 2 . . . . Energy Cannon . | . . . . . Ballistic Gun . | . . . . . Ballistic Cannon . | . . . . . Launcher . | . . . . . Special Weapon 2 | . . . . 2 Impact Weapon . | . . . . . Slashing Weapon . | . . . . . Piercing Weapon . | . . . . . Special Melee Weapon . | . . . . . Unidentified Prototypes . | . . . . . Parts Lost 9 | . . . . 9 Power 1 | . . . . 1 Propulsion 3 | . . . . 3 Utility 1 | . . . . 1 Weapon 4 | . . . . 4 Highest Loss Streak 5 | . . . . 5 To Critical Strikes . | . . . . . Average Backups 7 | 4 7 8 8 6 Power . | . . . . . Propulsion 2 | 2 3 3 2 1 Utility 1 | . . 2 2 2 Weapon 2 | 1 3 3 3 2 Tool/Special . | . . . . . Unused Backups 11 | 1 1 . 3 6 Power 2 | . . . 1 1 Propulsion 4 | 1 1 . 1 1 Utility 4 | . . . 1 3 Weapon 1 | . . . . 1 Tool/Special . | . . . . . Average Slot Usage (%) 96 | . 100 100 100 79 Engine 2 | . 14 6 . . Core 11 | . . 7 14 13 Wheel 26 | . 28 28 28 21 Device 13 | . 14 14 14 8 Storage 14 | . 14 14 14 14 Energy Gun 26 | . 28 28 28 20 Peak Build Rating 10 | 7 8 10 10 10 Average Rating 8 | 5 7 9 9 7 On Entrance 7 | . 7 8 10 10 Naked Turns . | . . . . . Heaviest Build 18 | 13 13 13 18 18 Greatest Support 20 | 20 20 20 20 20 Greatest Overweight (x) 4 | . . . . 4 Average Overweight (x) . | . . . . . Largest Inventory Capacity 10 | 8 8 8 10 10 Average Capacity 9 | 7 8 8 9 10 Most Carried 9 | 8 8 8 9 8 Average Carried 7 | 4 7 8 7 6 Final Capacity 10 | 8 8 8 10 10 Final Carried 8 | 7 8 8 8 4 Class Distribution -------------------- 100% | Mutant Dominant Class ---------------- Mutant | -10/Materials Mutant | -10/Mines Mutant | -10/Exiles Mutant | -9/Mines Resources | -11 -10 -10 -10 -9 ----------- Run | Yrd Mat Min Exi Min Matter Collected 405 | 270 . 89 31 15 Remotely . | . . . . . Salvage Created 346 | 209 . 89 . 48 Parts 19 | 12 . 6 . 1 Haulers Intercepted . | . . . . . Recyclers Shooed . | . . . . . Parts Field Recycled . | . . . . . Retrieved Matter . | . . . . . Parts Self-Destructed . | . . . . . Prevented . | . . . . . Kills | -11 -10 -10 -10 -9 ------- Run | Yrd Mat Min Exi Min Combat Hostiles Destroyed 4 | . . 2 . 2 Guns 4 | . . 2 . 2 Classes Destroyed 5 | 3 . 1 . 1 Worker 1 | 1 . . . . Tunneler 4 | 4 . . . . Recycler 1 | 1 . . . . Grunt 3 | . . 2 . 1 Duelist 1 | . . . . 1 Best Kill Streak 5 | 5 . 2 . 2 Combat Bots Only 2 | . . 2 . 2 Max Kills in Single Turn 1 | 1 . 1 . 1 Gunslinging . | . . . . . Exploded . | . . . . . Melee . | . . . . . Uniques/NPCs Destroyed . | . . . . . Combat | -11 -10 -10 -10 -9 -------- Run | Yrd Mat Min Exi Min Hostile Shots Fired 62 | . . 13 . 49 Missed 12 | . . 3 . 9 Hits 50 | . . 10 . 40 Melee 5 | . . . . 5 Projectile 45 | . . 10 . 35 Critical Strikes 1 | . . . . 1 Damage Taken 826 | . 8 136 . 682 Core 255 | . . 31 . 224 Absorbed by Shields . | . . . . . Core Remaining (%) 100 | 100 . . . . Volleys Fired 44 | 13 4 6 . 21 Largest 2 | 2 2 2 . 2 Hottest 200 | 80 80 80 . 200 Shots Fired 75 | 26 8 12 . 29 Gun 72 | 26 8 12 . 26 Cannon . | . . . . . Launcher . | . . . . . Special 3 | . . . . 3 Kinetic . | . . . . . Thermal 75 | 26 8 12 . 29 Explosive . | . . . . . Electromagnetic . | . . . . . Robot Hit Streak 18 | 7 3 7 . 18 Robot Miss Streak 3 | 3 1 2 . 1 Penetration Max . | . . . . . Secondary Targets 1 | . . 1 . . Max Gunslinging Chain 1 | . . 1 . . Shots Hit Robots 52 | 14 5 9 . 24 Core Hits 18 | 7 . 5 . 6 Critical Kills . | . . . . . Critical Parts Destroyed . | . . . . . Critical Strikes . | . . . . . Melee Attacks . | . . . . . Impact . | . . . . . Slashing . | . . . . . Piercing . | . . . . . Sneak Attacks . | . . . . . Combat Hostiles . | . . . . . Follow-up Attacks . | . . . . . Damage Inflicted 602 | 150 53 97 . 302 Guns 530 | 150 53 97 . 230 Cannons . | . . . . . Explosions . | . . . . . Melee . | . . . . . Ramming . | . . . . . Kinetic . | . . . . . Thermal 602 | 150 53 97 . 302 Explosive . | . . . . . Electromagnetic . | . . . . . Impact . | . . . . . Slashing . | . . . . . Piercing . | . . . . . Highest Corruption . | . . . . . Average Corruption . | . . . . . Corruption Purged . | . . . . . Corruption Blocked . | . . . . . Overload Shots . | . . . . . Overflow Damage . | . . . . . Projectiles . | . . . . . Explosions . | . . . . . Melee . | . . . . . Knockbacks . | . . . . . Impact . | . . . . . Kinetic . | . . . . . Secondary . | . . . . . Self-Inflicted Damage . | . . . . . Shots . | . . . . . Rammed . | . . . . . Targets Rammed . | . . . . . Kicked . | . . . . . Crushed . | . . . . . Highest Temperature 278 | 72 40 209 . 278 Average Temperature 107 | 23 21 114 . 164 Received Heat Transfer 381 | . 6 81 . 294 Effects 2 | . . . . 2 Interference 2 | . . . . 2 Siege Activations . | . . . . . Martial Activations . | . . . . . Shielding Activations . | . . . . . Robots Disrupted . | . . . . . Combat Hostiles . | . . . . . Robots Corrupted . | . . . . . Combat Hostiles . | . . . . . Parts Fried . | . . . . . Impact Corruptions . | . . . . . Robots Melted . | . . . . . Combat Hostiles . | . . . . . Parts Melted 2 | . . . . 2 Heat Transferred 1375 | 350 125 225 . 675 Parts Sabotaged . | . . . . . Parts Stolen . | . . . . . Parts Stripped . | . . . . . Power Chain Reactions . | . . . . . Alert | -11 -10 -10 -10 -9 ------- Run | Yrd Mat Min Exi Min Maximum Alert Level . | . . . . . Low Security (%) 100 | 100 100 100 . 100 Level 1 . | . . . . . Level 2 . | . . . . . Level 3 . | . . . . . Level 4 . | . . . . . Level 5 . | . . . . . High Security . | . . . . . Max Security . | . . . . . Peak Influence 60 | 10 3 50 . 60 Initial 3 | . 3 . . . Average 14 | 2 . 24 . 29 Influence Increases 205 | 30 . 50 . 125 Destroy 0b10 Robot/C 80 | . . 40 . 40 Destroy 0b10 Robot/NC 30 | 30 . . . . Destroy Leader 20 | . . 10 . 10 Lose Combat Pursuer 75 | . . . . 75 Influence Decreases 205 | 25 5 30 20 125 Entered New Map 22 | . 2 . 20 . Time Decay 98 | 25 3 30 . 40 Lost Part 85 | . . . . 85 Squads Dispatched . | . . . . . Investigation . | . . . . . Extermination . | . . . . . Reinforcement . | . . . . . Assault . | . . . . . Garrison . | . . . . . Intercept . | . . . . . Searches Triggered . | . . . . . Construction Impeded . | . . . . . Haulers Reinforced . | . . . . . Active Scanning Responses . | . . . . . Cargo Convoy Interrupts . | . . . . . Stealth | -11 -10 -10 -10 -9 --------- Run | Yrd Mat Min Exi Min Distress Signals . | . . . . . Communications Jammed . | . . . . . Distress Signals . | . . . . . Times Spotted 15 | . 5 2 . 8 Peak Tracking Total 5 | . 4 2 . 5 Tactical Retreats 2 | . . . . 2 Traps | -11 -10 -10 -10 -9 ------- Run | Yrd Mat Min Exi Min Traps Triggered . | . . . . . Indirectly . | . . . . . Trap Hack Attempts . | . . . . . Triggered . | . . . . . Disarmed . | . . . . . Reprogrammed . | . . . . . Reused . | . . . . . Traps Extracted . | . . . . . Installed . | . . . . . Triggered . | . . . . . Machines | -11 -10 -10 -10 -9 ---------- Run | Yrd Mat Min Exi Min Machines Disabled . | . . . . . Max in Single Turn . | . . . . . Machines Repaired . | . . . . . Machines Dismantled . | . . . . . Machines Sabotaged . | . . . . . Overloaded Fab Kills . | . . . . . Hacking | -11 -10 -10 -10 -9 --------- Run | Yrd Mat Min Exi Min Machines Accessed 5 | . 1 . 4 . Terminals 1 | . 1 . . . Fabricators . | . . . . . Repair Stations . | . . . . . Recycling Units . | . . . . . Scanalyzers . | . . . . . Garrison Access . | . . . . . Total Hacks 52 | . 3 . 49 . Successful 50 | . 1 . 49 . Failed 2 | . 2 . . . Catastrophic . | . . . . . Database Lockouts . | . . . . . Manual . | . . . . . Terminals 3 | . 3 . . . Fabricators . | . . . . . Repair Stations . | . . . . . Recycling Units . | . . . . . Scanalyzers . | . . . . . Garrison Access . | . . . . . Terminal Hacks 50 | . 1 . 49 . Record 50 | . 1 . 49 . Fabricator Hacks . | . . . . . Repair Station Hacks . | . . . . . Recycling Unit Hacks . | . . . . . Scanalyzer . | . . . . . Garrison Access Hacks . | . . . . . Unauthorized Hacks . | . . . . . Terminals . | . . . . . Fabricators . | . . . . . Repair Stations . | . . . . . Recycling Units . | . . . . . Scanalyzers . | . . . . . Garrison Access . | . . . . . Data Cores Recovered . | . . . . . Used . | . . . . . Hacking Detections 1 | . 1 . . . Full Trace Events 1 | . 1 . . . Feedback Events . | . . . . . Feedback Blocked . | . . . . . Robot Schematics Acquired . | . . . . . Robots Built . | . . . . . Authchips . | . . . . . Time . | . . . . . Total Robot Build Rating . | . . . . . Part Schematics Acquired . | . . . . . Parts Built . | . . . . . Authchips . | . . . . . Time . | . . . . . Total Part Build Rating . | . . . . . Parts Repaired . | . . . . . Time . | . . . . . Parts Recycled . | . . . . . Recycled Matter . | . . . . . Retrieved Matter . | . . . . . Retrieved Components . | . . . . . Parts Scanalyzed . | . . . . . Part Schematics Acquired . | . . . . . Parts Damaged . | . . . . . Bothacking | -11 -10 -10 -10 -9 ------------ Run | Yrd Mat Min Exi Min Used RIF Installer . | . . . . . Robots Hacked . | . . . . . Non-combat . | . . . . . Combat . | . . . . . Robot Hacks Applied . | . . . . . Relay Couplers Released . | . . . . . Fabnet Peak Effective % . | . . . . . Robots Rewired . | . . . . . Allies Hacked . | . . . . . Hacks Repelled . | . . . . . Allies | -11 -10 -10 -10 -9 -------- Run | Yrd Mat Min Exi Min Total Allies . | . . . . . Largest Group . | . . . . . Highest-Rated Group . | . . . . . Highest-Rated Ally . | . . . . . Total Orders . | . . . . . Ally Attacks . | . . . . . Total Damage . | . . . . . Kills . | . . . . . Allies Corrupted . | . . . . . Allies Melted . | . . . . . Intel | -11 -10 -10 -10 -9 ------- Run | Yrd Mat Min Exi Min Active Infowar (turns) 841 | 60 77 98 543 63 Seismic 841 | 60 77 98 543 63 Robot Analysis Total . | . . . . . Derelict Logs Recovered 1 | . . . . 1 Drone Launches . | . . . . . Drone Recoveries . | . . . . . Exploration | -11 -10 -10 -10 -9 ------------- Run | Yrd Mat Min Exi Min Turns Passed 988 | 138 77 98 543 132 Spaces Moved 992 | 101 78 99 644 70 Core 21 | 12 . . . 9 Treads . | . . . . . Legs . | . . . . . Wheels 971 | 89 78 99 644 61 Hover . | . . . . . Flight . | . . . . . Fastest Speed 50 | 50 80 80 80 80 Average Speed 80 | 76 80 80 80 97 Slowest Speed 250 | 80 80 80 80 250 Overloaded Moves . | . . . . . Propulsion Burnouts . | . . . . . Robots Hopped . | . . . . . Potential Cave-ins . | . . . . . Cave-ins Triggered . | . . . . . Exploration Rate (%) 31 | 3 19 28 93 13 Regions Visited 4 Branch Regions 3 Pre-discovered Areas 1 | . . . 1 . Known Exits Taken . | . . . . . Unknown Exits Taken 4 | 1 1 1 1 . Scrap Searched . | . . . . . Spaces Dug . | . . . . . Terrain Destroyed . | . . . . . Melee . | . . . . . Projectile . | . . . . . AOE . | . . . . . Terrain Rammed . | . . . . . Walls Destroyed . | . . . . . Machines Disabled . | . . . . . Actions | -11 -10 -10 -10 -9 --------- Run | Yrd Mat Min Exi Min Total 1098 | 136 84 106 673 99 Wait 13 | . . . 13 . Move 988 | 100 77 98 643 70 Hop . | . . . . . Pick Up 21 | 15 2 . 3 1 Fast Attach . | . . . . . Attach 10 | 7 . . . 3 Detach . | . . . . . Swap 4 | . . 1 1 2 Drop 9 | 1 1 1 4 2 Fire 44 | 13 4 6 . 21 Melee . | . . . . . Ram . | . . . . . Kick . | . . . . . Crush . | . . . . . Escape Stasis . | . . . . . Rewire 9 | . . . 9 . Trap . | . . . . . Miscellaneous . | . . . . . Route ------- -11/Scrapyard -10/Materials -10/Mines -10/Exiles (discovered 2 exits: [*Min x2]) -9/Mines History --------- Turn | Location | Event 11 | -11/Scrapyard | Discovered new exit (range 16) 139 | -11/Scrapyard | Entered Materials 140 | -10/Materials | Met a group of wandering Federalists 197 | -10/Materials | Discovered new exit (range 8) 216 | -10/Materials | Entered Mines 310 | -10/Mines | Deemed a non-threat by the Exiles lab entrance 311 | -10/Mines | Discovered new exit (range 5) 314 | -10/Mines | Build established: Mutant 314 | -10/Mines | Entered Exiles 331 | -10/Exiles | Discovered new exit (range 15) 346 | -10/Exiles | Met 8R-AWN 363 | -10/Exiles | Met EX-HEX 416 | -10/Exiles | Met EX-DEC 452 | -10/Exiles | Visited The Gauntlet 569 | -10/Exiles | Learned location of Zion (-7) 638 | -10/Exiles | Discovered new exit (range 12) 691 | -10/Exiles | Met EX-BIN 857 | -10/Exiles | Entered Mines 886 | -9/Mines | Learned 2 Materials zone layouts 951 | -9/Mines | Lost 4 parts (1n1u2w) 980 | -9/Mines | Core integrity fell below 50% 983 | -9/Mines | Core integrity fell below 20% 989 | -9/Mines | Destroyed by G-34 Mercenary with Small Laser Last Messages --------------- Mining Laser destroyed. Seismic Detector destroyed. L-31 Rogue destroyed. Overheating: System interference. Sml. Laser temporarily disabled. G-34 Mercenary heat spikes uncontrollably. G-34 Mercenary overheating. G-34 Mercenary heat damages core (-3). G-34 Mercenary overheating. Aluminum Leg melted. Heat Sink melted. G-34 Mercenary destroyed. Sml. Laser destroyed. Wheel destroyed. Sml. Laser destroyed. Extracted 15 matter. Dropped Rigged Fission Core. Wheel destroyed. Lgt. Nuclear Core destroyed. Rigged Fission Core explodes. Map ----- +----------------------------------------------------+ | ?????????? ##??????????????????????????? | | ??????????? #??????????????????????????? | | ??????????? ###???????????????????????? | | ??????????? ????????????????????????? | | ??????????? #????????????????????????? | | ??????????? #????????????????????????? | | ??????????? #?????????????????????????? | | ???????????# #??????????????????????????? | | ???????##### #???????????????????????????? | | ???????# #???????????????????????????? | | ???????# ### #???????????????????????????? | | ???????# #?# ######## #??????????????????? | | ???????# #?# #??????????????????? | | ???????# #?###### #####??????????????????? | | ?????### #####??# #??????????????????????? | | ?????# #??# #??????????????????????? | | ?????# #### #??????????????????????? | | ?????# #??????????????????????? | | ?????# # ####??????????????????????? | | ?????# """ # #####???????????##????????? | | ?????# """ # #??????? #????????? | | ?????# """ ##### #### ??????? | | ?????############# #?????????????? | | ??????# ;; ## #### ##?????????????? | | ??????# ! !! ;;g#u#?????????????????????? | | ??????# ! ! ! g g@*#?????????????????????? | | ??????# !!!! ;;####?????????????????????? | | ??????# ! !! # #????????????????????????? | | ??????# ###????????????????????????? | | ??????## #??????????????????????????? | | ???????########??????????????????????????? | | ?????????????????????????????????????????? | | ?????????????????????????????????????????? | | ?????????????????????????????????????????? | | ?????????????????????????????????????????? | | ?????????????????????????????????????????? | | ?????????????????????????????????????????? | | ?????????????????????????????????????????? | | ?????????????????????????????????????????? | | ?????????????????????????????????????????? | | ?????????????????????????????????????????? | | ?????????????????????????????????????????? | | ?????????????????????????????????????????? | | ?????????????????????????????????????????? | | ?????????????????????????????????????????? | | ?????????????????????????????????????????? | | ?????????????????????????????????????????? | | ?????????????????????????????????????????? | | ?????????????????????????????????????????? | | ?????????????????????????????????????????? | +----------------------------------------------------+ Best States ------------- Heat Dissipation 25 Energy Generation 14 Energy Capacity 250 Matter Stores 300 Matter Capacity 300 Sight Range 16 Terrain Scan Density 10 Evasion (%) 50 Item Schematics ----------------- None Robot Schematics ------------------ None Fabricated ------------ Nothing Repaired ---------- Nothing Alien Tech Used ----------------- None Achievements -------------- Tourist Challenges ------------ None Game ------ Seed PowerDirectedDissipator Manual? 0 Play Time 00:18:49 Cumulative 4.8 hours Start 2025.08.12 @ 10:31:15 End 2025.08.12 @ 10:57:01 Sessions 1 Manual Loads 0 Difficulty Rogue Special Mode None Game No. 7 Rogue 7 Adventurer 0 Explorer 0 Win Type - Total 0 Types 0/0/0/0/0/0/0/0/0/0 Lore% 6 Gallery% 9 Achievement% 10 Wizard Run 0 Options --------- Layout 1 ASCII 0 Keyboard 0 Movement Mouse Keybinds 0 Fullscreen 1 Font 24/Smallcaps Map View 50x35 Zoom Use 0% Tactical HUD 0 Map Filters NONE Filters NONE Steam 1 RUN: cce9abea-9524-4f80-9020-2be270f36358